fUSD/lending_fUSD_20240714
["ID","MTS","AMOUNT","RATE_DAILY","PERIOD"]
[332082330,1720953049520,-150.0,0.00013839,2]
[332082332,1720953049530,-1754.93693,0.0001386,2]
[332082334,1720953049540,-573.01589104,0.00013862,2]
[332082336,1720953049550,-500.0,0.00013863,2]
[332082338,1720953049559,-500.0,0.00013863,2]
[332082340,1720953049569,-500.0,0.00013863,2]
[332082342,1720953049579,-500.0,0.00013863,2]
[332082344,1720953049588,-500.0,0.00013863,2]
[332082346,1720953049598,-500.0,0.00013863,2]
[332082348,1720953049609,-500.0,0.00013863,2]
[332082350,1720953049619,-500.0,0.00013863,2]
[332082352,1720953049629,-535.92,0.00013863,2]
[332082354,1720953049638,-500.0,0.00013863,2]
[332082356,1720953049646,-500.0,0.00013863,2]
[332082358,1720953049655,-500.0,0.00013863,2]
[332082359,1720953049664,-500.0,0.00013863,2]
[332082361,1720953049674,-502.1,0.00013863,2]
[332082363,1720953049684,-500.0,0.00013863,2]
[332082365,1720953049693,-499.44790526,0.00013863,2]
[332082367,1720953049703,-500.0,0.00013863,2]
[332082369,1720953049713,-500.0,0.00013863,2]
[332082371,1720953049722,-513.5,0.00013863,2]
[332082373,1720953049731,-500.0,0.00013863,2]
[332082375,1720953049741,-500.0,0.00013863,2]
[332082377,1720953049750,-500.0,0.00013863,2]
[332082379,1720953049759,-500.0,0.00013863,2]
[332082381,1720953049769,-500.0,0.00013863,2]
[332082383,1720953049778,-500.0,0.00013863,2]
[332082385,1720953049788,-315.56432327,0.00013863,2]
[332082387,1720953049797,-500.0,0.00013863,2]
[332082389,1720953049807,-531.53,0.00013863,2]
[332082391,1720953049816,-500.0,0.00013863,2]
[332082393,1720953049826,-500.0,0.00013863,2]
[332082395,1720953049836,-500.0,0.00013863,2]
[332082397,1720953049846,-500.0,0.00013863,2]
[332082399,1720953049856,-614.64,0.00013863,2]
[332082401,1720953049865,-522.28,0.00013863,2]
[332082403,1720953049875,-500.0,0.00013863,2]
[332082405,1720953049884,-500.0,0.00013863,2]
[332082407,1720953049893,-500.0,0.00013863,2]
[332082409,1720953049903,-500.0,0.00013863,2]
[332082411,1720953049912,-500.0,0.00013863,2]
[332082413,1720953049922,-500.0,0.00013863,2]
[332082415,1720953049931,-500.0,0.00013863,2]
[332082417,1720953049941,-500.0,0.00013863,2]
[332082419,1720953049950,-500.0,0.00013863,2]
[332082421,1720953049960,-515.7,0.00013863,2]
[332082423,1720953049971,-500.0,0.00013863,2]
[332082425,1720953049981,-500.0,0.00013863,2]
[332082427,1720953049991,-500.0,0.00013863,2]
[332082429,1720953050001,-500.0,0.00013863,2]
[332082431,1720953050011,-832.99,0.00013863,2]
[332082433,1720953050020,-575.04,0.00013863,2]
[332082435,1720953050030,-500.0,0.00013863,2]
[332082437,1720953050039,-500.0,0.00013863,2]
[332082439,1720953050049,-500.0,0.00013863,2]
[332082441,1720953050058,-500.0,0.00013863,2]
[332082443,1720953050068,-500.0,0.00013863,2]
[332082445,1720953050077,-958.73,0.00013863,2]
[332082447,1720953050086,-500.0,0.00013863,2]
[332082449,1720953050096,-500.0,0.00013863,2]
[332082451,1720953050107,-500.0,0.00013863,2]
[332082453,1720953050116,-594.21,0.00013863,2]
[332082455,1720953050126,-500.0,0.00013863,2]
[332082456,1720953050137,-500.0,0.00013863,2]
[332082458,1720953050146,-573.98,0.00013863,2]
[332082460,1720953050155,-500.0,0.00013863,2]
[332082462,1720953050165,-500.0,0.00013863,2]
[332082464,1720953050174,-614.44,0.00013863,2]
[332082466,1720953050184,-568.85,0.00013863,2]
[332082468,1720953050194,-500.0,0.00013863,2]
[332082470,1720953050203,-500.0,0.00013863,2]
[332082472,1720953050213,-500.0,0.00013863,2]
[332082474,1720953050223,-622.71,0.00013863,2]
[332082476,1720953050232,-500.0,0.00013863,2]
[332082478,1720953050242,-846.91,0.00013863,2]
[332082480,1720953050251,-500.0,0.00013863,2]
[332082481,1720953050261,-500.0,0.00013863,2]
[332082483,1720953050270,-644.97,0.00013863,2]
[332082485,1720953050280,-500.0,0.00013863,2]
[332082487,1720953050290,-621.73,0.00013863,2]
[332082489,1720953050302,-500.0,0.00013863,2]
[332082491,1720953050312,-500.0,0.00013863,2]
[332082493,1720953050322,-500.0,0.00013863,2]
[332082495,1720953050334,-916.4,0.00013863,2]
[332082497,1720953050343,-500.0,0.00013863,2]
[332082499,1720953050352,-577.0,0.00013863,2]
[332082501,1720953050362,-647.37,0.00013863,2]
[332082503,1720953050373,-500.0,0.00013863,2]
[332082505,1720953050383,-806.33,0.00013863,2]
[332082507,1720953050392,-500.0,0.00013863,2]
[332082508,1720953050402,-1047.99,0.00013863,2]
[332082509,1720953050412,-500.0,0.00013863,2]
[332082510,1720953050421,-328.56279999,0.00013863,2]
[332082511,1720953050431,-500.0,0.00013863,2]
[332082512,1720953050440,-873.3,0.00013863,2]
[332082513,1720953050450,-567.1,0.00013863,2]
[332082514,1720953050460,-500.0,0.00013863,2]
[332082515,1720953050470,-676.5,0.00013863,2]
[332082517,1720953050479,-500.0,0.00013863,2]
[332082519,1720953050488,-274.02119021,0.00013863,2]
[332082521,1720953050499,-500.0,0.00013863,2]
[332082523,1720953050508,-500.0,0.00013863,2]
[332082525,1720953050518,-500.0,0.00013863,2]
[332082527,1720953050528,-500.0,0.00013863,2]
[332082529,1720953050538,-500.0,0.00013863,2]
[332082531,1720953050548,-589.97,0.00013863,2]
[332082533,1720953050557,-500.0,0.00013863,2]
[332082535,1720953050567,-500.0,0.00013863,2]
[332082537,1720953050577,-521.9,0.00013863,2]
[332082539,1720953050588,-957.15,0.00013863,2]
[332082541,1720953050597,-500.0,0.00013863,2]
[332082543,1720953050607,-500.0,0.00013863,2]
[332082545,1720953050616,-611.58,0.00013863,2]
[332082547,1720953050625,-521.59,0.00013863,2]
[332082549,1720953050635,-851.27,0.00013863,2]
[332082551,1720953050644,-500.0,0.00013863,2]
[332082553,1720953050654,-709.74,0.00013863,2]
[332082555,1720953050663,-500.0,0.00013863,2]
[332082557,1720953050672,-500.0,0.00013863,2]
[332082559,1720953050681,-500.0,0.00013863,2]
[332082561,1720953050691,-500.0,0.00013863,2]
[332082563,1720953050700,-500.0,0.00013863,2]
[332082565,1720953050709,-500.0,0.00013863,2]
[332082567,1720953050718,-500.0,0.00013863,2]
[332082569,1720953050727,-529.45,0.00013863,2]
[332082571,1720953050737,-691.5,0.00013863,2]
[332082573,1720953050747,-500.0,0.00013863,2]
[332082575,1720953050756,-771.5,0.00013863,2]
[332082577,1720953050765,-507.42,0.00013863,2]
[332082579,1720953050775,-500.0,0.00013863,2]
[332082581,1720953050785,-500.0,0.00013863,2]
[332082583,1720953050794,-500.0,0.00013863,2]
[332082585,1720953050804,-610.63,0.00013863,2]
[332082587,1720953050813,-707.58,0.00013863,2]
[332082588,1720953050822,-500.0,0.00013863,2]
[332082590,1720953050831,-782.02,0.00013863,2]
[332082592,1720953050840,-756.83,0.00013863,2]
[332082594,1720953050849,-500.0,0.00013863,2]
[332082596,1720953050859,-723.06,0.00013863,2]
[332082598,1720953050869,-500.0,0.00013863,2]
[332082600,1720953050878,-988.21,0.00013863,2]
[332082602,1720953050888,-795.81,0.00013863,2]
[332082604,1720953050898,-500.0,0.00013863,2]
[332082606,1720953050908,-1010.02,0.00013863,2]
[332082608,1720953050918,-500.0,0.00013863,2]
[332082610,1720953050927,-677.21,0.00013863,2]
[332082612,1720953050936,-500.0,0.00013863,2]
[332082614,1720953050946,-584.95,0.00013863,2]
[332082616,1720953050956,-500.0,0.00013863,2]
[332082618,1720953050966,-500.0,0.00013863,2]
[332082620,1720953050975,-500.0,0.00013863,2]
[332082622,1720953050984,-500.0,0.00013863,2]
[332082624,1720953050994,-659.93,0.00013863,2]
[332082626,1720953051003,-500.0,0.00013863,2]
[332082628,1720953051012,-500.0,0.00013863,2]
[332082629,1720953051021,-500.0,0.00013863,2]
[332082631,1720953051030,-500.0,0.00013863,2]
[332082633,1720953051040,-500.0,0.00013863,2]
[332082635,1720953051049,-500.0,0.00013863,2]
[332082637,1720953051059,-500.0,0.00013863,2]
[332082639,1720953051069,-500.0,0.00013863,2]
[332082641,1720953051080,-500.0,0.00013863,2]
[332082643,1720953051090,-576.77,0.00013863,2]
[332082645,1720953051101,-500.0,0.00013863,2]
[332082647,1720953051110,-582.79,0.00013863,2]
[332082649,1720953051120,-500.0,0.00013863,2]
[332082651,1720953051130,-367.79,0.00013863,2]
[332082653,1720953051140,-500.0,0.00013863,2]
[332082655,1720953051150,-732.18,0.00013863,2]
[332082657,1720953051160,-500.0,0.00013863,2]
[332082659,1720953051170,-500.0,0.00013863,2]
[332082661,1720953051179,-500.0,0.00013863,2]
[332082663,1720953051188,-500.0,0.00013863,2]
[332082665,1720953051198,-500.0,0.00013863,2]
[332082667,1720953051207,-500.0,0.00013863,2]
[332082669,1720953051216,-575.0,0.00013863,2]
[332082671,1720953051226,-500.0,0.00013863,2]
[332082673,1720953051235,-500.0,0.00013863,2]
[332082675,1720953051244,-500.0,0.00013863,2]
[332082677,1720953051253,-564.06,0.00013863,2]
[332082679,1720953051263,-633.87,0.00013863,2]
[332082681,1720953051272,-500.0,0.00013863,2]
[332082682,1720953051283,-500.0,0.00013863,2]
[332082684,1720953051295,-500.0,0.00013863,2]
[332082686,1720953051304,-500.0,0.00013863,2]
[332082688,1720953051314,-500.0,0.00013863,2]
[332082690,1720953051324,-500.0,0.00013863,2]
[332082692,1720953051333,-500.0,0.00013863,2]
[332082694,1720953051343,-500.0,0.00013863,2]
[332082696,1720953051353,-717.26,0.00013863,2]
[332082698,1720953051362,-503.37,0.00013863,2]
[332082700,1720953051373,-500.0,0.00013863,2]
[332082702,1720953051382,-531.88,0.00013863,2]
[332082704,1720953051391,-500.0,0.00013863,2]
[332082706,1720953051400,-625.34,0.00013863,2]
[332082708,1720953051409,-500.0,0.00013863,2]
[332082710,1720953051419,-536.56,0.00013863,2]
[332082712,1720953051429,-486.72643623,0.00013863,2]
[332082714,1720953051438,-500.0,0.00013863,2]
[332082716,1720953051447,-500.0,0.00013863,2]
[332082718,1720953051456,-500.0,0.00013863,2]
[332082720,1720953051466,-559.11,0.00013863,2]
[332082722,1720953051476,-500.0,0.00013863,2]
[332082724,1720953051487,-500.0,0.00013863,2]
[332082726,1720953051496,-647.05,0.00013863,2]
[332082728,1720953051505,-514.14,0.00013863,2]
[332082730,1720953051515,-500.0,0.00013863,2]
[332082732,1720953051525,-546.81,0.00013863,2]
[332082734,1720953051535,-500.0,0.00013863,2]
[332082736,1720953051544,-500.0,0.00013863,2]
[332082738,1720953051554,-769.63,0.00013863,2]
[332082740,1720953051564,-500.0,0.00013863,2]
[332082742,1720953051573,-500.0,0.00013863,2]
[332082744,1720953051583,-500.0,0.00013863,2]
[332082746,1720953051593,-500.0,0.00013863,2]
[332082748,1720953051602,-567.08,0.00013863,2]
[332082750,1720953051613,-500.0,0.00013863,2]
[332082751,1720953051622,-500.0,0.00013863,2]
[332082753,1720953051632,-500.0,0.00013863,2]
[332082755,1720953051643,-500.0,0.00013863,2]
[332082758,1720953051653,-514.02,0.00013863,2]
[332082760,1720953051662,-500.0,0.00013863,2]
[332082762,1720953051672,-500.0,0.00013863,2]
[332082764,1720953051681,-500.0,0.00013863,2]
[332082766,1720953051691,-500.0,0.00013863,2]
[332082768,1720953051701,-1021.83,0.00013863,2]
[332082770,1720953051711,-500.0,0.00013863,2]
[332082772,1720953051720,-553.48,0.00013863,2]
[332082774,1720953051731,-500.0,0.00013863,2]
[332082776,1720953051741,-722.88,0.00013863,2]
[332082778,1720953051750,-500.0,0.00013863,2]
[332082780,1720953051760,-821.75,0.00013863,2]
[332082782,1720953051770,-721.24,0.00013863,2]
[332082784,1720953051779,-500.0,0.00013863,2]
[332082786,1720953051789,-734.99,0.00013863,2]
[332082788,1720953051799,-500.0,0.00013863,2]
[332082790,1720953051809,-684.45,0.00013863,2]
[332082792,1720953051819,-500.0,0.00013863,2]
[332082794,1720953051829,-500.0,0.00013863,2]
[332082796,1720953051838,-500.0,0.00013863,2]
[332082798,1720953051848,-500.0,0.00013863,2]
[332082800,1720953051859,-500.0,0.00013863,2]
[332082801,1720953051868,-500.0,0.00013863,2]
[332082803,1720953051879,-659.11,0.00013863,2]
[332082805,1720953051888,-788.08,0.00013863,2]
[332082807,1720953051898,-652.62,0.00013863,2]
[332082809,1720953051907,-963.07,0.00013863,2]
[332082811,1720953051917,-559.2,0.00013863,2]
[332082813,1720953051927,-500.0,0.00013863,2]
[332082815,1720953051937,-586.93,0.00013863,2]
[332082817,1720953051946,-1045.12,0.00013863,2]
[332082819,1720953051957,-500.0,0.00013863,2]
[332082821,1720953051967,-564.05,0.00013863,2]
[332082823,1720953051976,-813.9,0.00013863,2]
[332082825,1720953051986,-500.0,0.00013863,2]
[332082827,1720953051996,-500.0,0.00013863,2]
[332082829,1720953052006,-851.27,0.00013863,2]
[332082832,1720953052016,-552.78,0.00013863,2]
[332082833,1720953052026,-967.32,0.00013863,2]
[332082835,1720953052036,-1237.64,0.00013863,2]
[332082838,1720953052046,-500.0,0.00013863,2]
[332082840,1720953052056,-500.0,0.00013863,2]
[332082842,1720953052066,-661.8,0.00013863,2]
[332082844,1720953052076,-721.93,0.00013863,2]
[332082846,1720953052085,-650.84,0.00013863,2]
[332082847,1720953052095,-500.0,0.00013863,2]
[332082849,1720953052105,-500.0,0.00013863,2]
[332082851,1720953052115,-542.23,0.00013863,2]
[332082853,1720953052125,-500.0,0.00013863,2]
[332082855,1720953052135,-630.42,0.00013863,2]
[332082857,1720953052145,-500.0,0.00013863,2]
[332082859,1720953052155,-500.0,0.00013863,2]
[332082861,1720953052164,-668.0,0.00013863,2]
[332082863,1720953052174,-500.0,0.00013863,2]
[332082865,1720953052184,-500.0,0.00013863,2]
[332082867,1720953052194,-500.0,0.00013863,2]
[332082869,1720953052204,-500.0,0.00013863,2]
[332082871,1720953052214,-668.13,0.00013863,2]
[332082873,1720953052223,-500.0,0.00013863,2]
[332082875,1720953052233,-926.76,0.00013863,2]
[332082877,1720953052243,-500.0,0.00013863,2]
[332082879,1720953052253,-818.24,0.00013863,2]
[332082881,1720953052264,-500.0,0.00013863,2]
[332082883,1720953052273,-500.0,0.00013863,2]
[332082885,1720953052284,-500.0,0.00013863,2]
[332082888,1720953052297,-500.0,0.00013863,2]
[332082890,1720953052307,-500.0,0.00013863,2]
[332082892,1720953052317,-500.0,0.00013863,2]
[332082894,1720953052326,-875.29,0.00013863,2]
[332082896,1720953052336,-571.38,0.00013863,2]
[332082898,1720953052346,-500.0,0.00013863,2]
[332082900,1720953052356,-500.0,0.00013863,2]
[332082902,1720953052366,-4346.32,0.00013863,2]
[332082904,1720953052378,-500.0,0.00013863,2]
[332082906,1720953052389,-730.47,0.00013863,2]
[332082908,1720953052399,-500.0,0.00013863,2]
[332082909,1720953052408,-500.0,0.00013863,2]
[332082910,1720953052418,-793.29,0.00013863,2]
[332082911,1720953052428,-956.15,0.00013863,2]
[332082912,1720953052437,-513.3,0.00013863,2]
[332082913,1720953052448,-500.0,0.00013863,2]
[332082914,1720953052458,-500.0,0.00013863,2]
[332082915,1720953052468,-500.0,0.00013863,2]
[332082916,1720953052477,-500.0,0.00013863,2]
[332082918,1720953052487,-500.0,0.00013863,2]
[332082920,1720953052498,-500.0,0.00013863,2]
[332082923,1720953052508,-556.02,0.00013863,2]
[332082925,1720953052520,-978.75,0.00013863,2]
[332082927,1720953052529,-636.44,0.00013863,2]
[332082929,1720953052539,-500.0,0.00013863,2]
[332082931,1720953052550,-813.91,0.00013863,2]
[332082933,1720953052560,-2000.42,0.00013863,2]
[332082935,1720953052570,-532.91,0.00013863,2]
[332082937,1720953052580,-500.0,0.00013863,2]
[332082939,1720953052590,-759.7,0.00013863,2]
[332082941,1720953052599,-571.84,0.00013863,2]
[332082943,1720953052609,-813.67,0.00013863,2]
[332082945,1720953052619,-500.0,0.00013863,2]
[332082947,1720953052629,-500.0,0.00013863,2]
[332082949,1720953052638,-500.0,0.00013863,2]
[332082951,1720953052648,-1769.97,0.00013863,2]
[332082953,1720953052658,-2233.7,0.00013863,2]
[332082955,1720953052668,-563.79,0.00013863,2]
[332082958,1720953052678,-660.57,0.00013863,2]
[332082960,1720953052688,-500.0,0.00013863,2]
[332082962,1720953052697,-500.0,0.00013863,2]
[332082964,1720953052707,-597.19,0.00013863,2]
[332082966,1720953052716,-1284.3,0.00013863,2]
[332082968,1720953052726,-552.52,0.00013863,2]
[332082970,1720953052735,-500.0,0.00013863,2]
[332082972,1720953052745,-500.0,0.00013863,2]
[332082974,1720953052755,-1017.39,0.00013863,2]
[332082976,1720953052764,-500.0,0.00013863,2]
[332082978,1720953052774,-500.0,0.00013863,2]
[332082980,1720953052783,-1063.32,0.00013863,2]
[332082982,1720953052793,-500.0,0.00013863,2]
[332082984,1720953052803,-500.0,0.00013863,2]
[332082986,1720953052813,-532.45,0.00013863,2]
[332082988,1720953052822,-500.0,0.00013863,2]
[332082990,1720953052832,-810.42,0.00013863,2]
[332082992,1720953052842,-734.34,0.00013863,2]
[332082994,1720953052852,-500.0,0.00013863,2]
[332082996,1720953052862,-500.0,0.00013863,2]
[332082998,1720953052871,-500.0,0.00013863,2]
[332083000,1720953052882,-1042.25,0.00013863,2]
[332083002,1720953052892,-544.08,0.00013863,2]
[332083004,1720953052903,-767.04,0.00013863,2]
[332083006,1720953052914,-577.6,0.00013863,2]
[332083008,1720953052924,-500.0,0.00013863,2]
[332083011,1720953052934,-500.0,0.00013863,2]
[332083012,1720953052944,-500.0,0.00013863,2]
[332083014,1720953052954,-500.0,0.00013863,2]
[332083016,1720953052965,-500.0,0.00013863,2]
[332083018,1720953052975,-500.0,0.00013863,2]
[332083020,1720953052985,-890.25,0.00013863,2]
[332083022,1720953052995,-500.0,0.00013863,2]
[332083025,1720953053005,-250.18664709,0.00013863,2]
[332083027,1720953053014,-500.0,0.00013863,2]
[332083029,1720953053025,-529.03,0.00013863,2]
[332083031,1720953053035,-500.0,0.00013863,2]
[332083033,1720953053046,-786.78,0.00013863,2]
[332083035,1720953053055,-991.4,0.00013863,2]
[332083037,1720953053065,-514.71,0.00013863,2]
[332083039,1720953053075,-500.0,0.00013863,2]
[332083041,1720953053086,-616.84,0.00013863,2]
[332083043,1720953053096,-500.0,0.00013863,2]
[332083045,1720953053106,-628.72,0.00013863,2]
[332083047,1720953053115,-785.58,0.00013863,2]
[332083049,1720953053125,-3926.71,0.00013863,2]
[332083051,1720953053135,-2899.14,0.00013863,2]
[332083053,1720953053146,-824.32,0.00013863,2]
[332083056,1720953053157,-819.62,0.00013863,2]
[332083058,1720953053166,-516.57,0.00013863,2]
[332083060,1720953053177,-922.21,0.00013863,2]
[332083062,1720953053187,-500.0,0.00013863,2]
[332083064,1720953053198,-773.04,0.00013863,2]
[332083066,1720953053207,-938.7,0.00013863,2]
[332083068,1720953053217,-655.89,0.00013863,2]
[332083070,1720953053227,-500.0,0.00013863,2]
[332083072,1720953053236,-841.33,0.00013863,2]
[332083074,1720953053246,-593.56,0.00013863,2]
[332083076,1720953053256,-500.0,0.00013863,2]
[332083078,1720953053266,-599.08,0.00013863,2]
[332083080,1720953053276,-500.0,0.00013863,2]
[332083082,1720953053292,-995.19,0.00013863,2]
[332083084,1720953053302,-524.43,0.00013863,2]
[332083086,1720953053312,-799.31,0.00013863,2]
[332083088,1720953053324,-500.0,0.00013863,2]
[332083090,1720953053334,-725.52,0.00013863,2]
[332083092,1720953053344,-500.0,0.00013863,2]
[332083094,1720953053355,-500.0,0.00013863,2]
[332083096,1720953053368,-500.0,0.00013863,2]
[332083098,1720953053377,-500.0,0.00013863,2]
[332083100,1720953053387,-161.16502464,0.00013872,2]
[332083102,1720953053397,-385.96925274,0.00013881,2]
[332083104,1720953053407,-184.86227254,0.00013884,2]
[332083106,1720953053416,-150.0,0.00013885,2]
[332083108,1720953053426,-488.36,0.0001389,2]
[332083110,1720953053438,-150.0,0.00013891,2]
[332083112,1720953053448,-818.0,0.000139,5]
[332083114,1720953053457,-207.76666622,0.000139,2]
[332083116,1720953053467,-408.41171911,0.000139,2]
[332083118,1720953053476,-379.02546183,0.000139,2]
[332083120,1720953053486,-3614.16298604,0.000139,2]
[332083122,1720953053496,-150.0,0.00013904,2]
[332083124,1720953053505,-388.58987389,0.00013916,2]
[332083126,1720953053515,-500.0,0.00013917,2]
[332083128,1720953053525,-500.0,0.00013917,2]
[332083130,1720953053535,-500.0,0.00013917,2]
[332083131,1720953053544,-500.0,0.00013917,2]
[332083133,1720953053555,-500.0,0.00013917,2]
[332083135,1720953053564,-500.0,0.00013917,2]
[332083137,1720953053574,-500.0,0.00013917,2]
[332083139,1720953053584,-535.92,0.00013917,2]
[332083141,1720953053593,-500.0,0.00013917,2]
[332083143,1720953053604,-500.0,0.00013917,2]
[332083145,1720953053614,-500.0,0.00013917,2]
[332083147,1720953053624,-500.0,0.00013917,2]
[332083149,1720953053637,-502.1,0.00013917,2]
[332083151,1720953053647,-500.0,0.00013917,2]
[332083153,1720953053657,-287.50247672,0.00013917,2]
[332083155,1720953053667,-500.0,0.00013917,2]
[332083157,1720953053677,-513.5,0.00013917,2]
[332083160,1720953053687,-500.0,0.00013917,2]
[332083162,1720953053697,-500.0,0.00013917,2]
[332083164,1720953053707,-500.0,0.00013917,2]
[332083166,1720953053716,-500.0,0.00013917,2]
[332083168,1720953053726,-500.0,0.00013917,2]
[332083170,1720953053736,-500.0,0.00013917,2]
[332083172,1720953053746,-500.0,0.00013917,2]
[332083174,1720953053756,-531.53,0.00013917,2]
[332083176,1720953053766,-500.0,0.00013917,2]
[332083178,1720953053776,-500.0,0.00013917,2]
[332083180,1720953053785,-500.0,0.00013917,2]
[332083182,1720953053795,-500.0,0.00013917,2]
[332083184,1720953053805,-614.64,0.00013917,2]
[332083185,1720953053815,-522.28,0.00013917,2]
[332083187,1720953053825,-500.0,0.00013917,2]
[332083189,1720953053835,-500.0,0.00013917,2]
[332083191,1720953053844,-500.0,0.00013917,2]
[332083193,1720953053854,-500.0,0.00013917,2]
[332083195,1720953053864,-500.0,0.00013917,2]
[332083197,1720953053874,-500.0,0.00013917,2]
[332083199,1720953053885,-500.0,0.00013917,2]
[332083226,1720953054141,-500.0,0.00013917,2]
[332083229,1720953054160,-500.0,0.00013917,2]
[332083231,1720953054170,-515.7,0.00013917,2]
[332083233,1720953054179,-500.0,0.00013917,2]
[332083235,1720953054189,-500.0,0.00013917,2]
[332083237,1720953054199,-500.0,0.00013917,2]
[332083239,1720953054208,-500.0,0.00013917,2]
[332083241,1720953054218,-832.99,0.00013917,2]
[332083243,1720953054227,-575.04,0.00013917,2]
[332083245,1720953054236,-500.0,0.00013917,2]
[332083246,1720953054246,-500.0,0.00013917,2]
[332083247,1720953054255,-500.0,0.00013917,2]
[332083248,1720953054264,-500.0,0.00013917,2]
[332083249,1720953054273,-500.0,0.00013917,2]
[332083250,1720953054285,-958.73,0.00013917,2]
[332083251,1720953054295,-500.0,0.00013917,2]
[332083252,1720953054304,-500.0,0.00013917,2]
[332083254,1720953054314,-592.26970038,0.00013917,2]
[332083256,1720953054324,-594.21,0.00013917,2]
[332083258,1720953054333,-500.0,0.00013917,2]
[332083260,1720953054342,-500.0,0.00013917,2]
[332083262,1720953054352,-573.98,0.00013917,2]
[332083264,1720953054362,-500.0,0.00013917,2]
[332083266,1720953054374,-500.0,0.00013917,2]
[332083268,1720953054383,-614.44,0.00013917,2]
[332083270,1720953054392,-568.85,0.00013917,2]
[332083271,1720953054401,-500.0,0.00013917,2]
[332083273,1720953054411,-282.94688071,0.00013917,2]
[332083275,1720953054420,-500.0,0.00013917,2]
[332083277,1720953054431,-622.71,0.00013917,2]
[332083279,1720953054441,-500.0,0.00013917,2]
[332083281,1720953054452,-846.91,0.00013917,2]
[332083283,1720953054462,-500.0,0.00013917,2]
[332083286,1720953054474,-500.0,0.00013917,2]
[332083288,1720953054483,-644.97,0.00013917,2]
[332083290,1720953054494,-500.0,0.00013917,2]
[332083292,1720953054504,-621.73,0.00013917,2]
[332083293,1720953054513,-500.0,0.00013917,2]
[332083295,1720953054523,-500.0,0.00013917,2]
[332083297,1720953054533,-500.0,0.00013917,2]
[332083299,1720953054544,-916.4,0.00013917,2]
[332083301,1720953054553,-500.0,0.00013917,2]
[332083303,1720953054563,-577.0,0.00013917,2]
[332083305,1720953054574,-647.37,0.00013917,2]
[332083307,1720953054585,-500.0,0.00013917,2]
[332083309,1720953054595,-806.33,0.00013917,2]
[332083311,1720953054604,-500.0,0.00013917,2]
[332083313,1720953054613,-1047.99,0.00013917,2]
[332083315,1720953054622,-500.0,0.00013917,2]
[332083317,1720953054631,-500.0,0.00013917,2]
[332083319,1720953054643,-873.3,0.00013917,2]
[332083322,1720953054653,-567.1,0.00013917,2]
[332083324,1720953054665,-500.0,0.00013917,2]
[332083326,1720953054677,-676.5,0.00013917,2]
[332083328,1720953054686,-500.0,0.00013917,2]